Workbook

Sheet Problem
A1: Free Practice Problems for Society of Actuaries (SOA) Exam GIADV: Advanced Topics in General Insurance
A2: G. Stolyarov II, ASA, ACAS, MAAA, CPCU, ARe, ARC, API, AIS, AIE, AIAF
A3: http://www.rationalargumentator.com/index/giadv-study-guide/
A4: Inexhaustible Exam-Style Practice
A5: Based on Problem 7(b) - Spring 2014 SOA Exam GIADV
A6: You are evaluating the renewal of two accounts, X and Y, which are exposed to two possible independent claim events, 1 and 2. The following information is given:
A7: Event (i) | C7: Loss for Account (L) | F7: (L^2)*p*(1-p)
A8: i | B8: p(i) | C8: X | D8: Y | E8: X+Y | F8: X | G8: Y | H8: X+Y
A9: 1 | B9: =ROUND(D19/10,3) -> 0.053 | C9: =ROUND(2000*D19+15000/D19,0) -> 29187 | D9: =ROUND(MAX(96000*D19+18000/D19-2200, 1000), 0) -> 82753 | E9: =SUM(C9:D9) -> 111940 | F9: =(C9^2)*B9*(1-B9) -> 42756757.72 | G9: =(D9^2)*B9*(1-B9) -> 343710929.7 | H9: =(E9^2)*B9*(1-B9) -> 628921517.6
A10: 2 | B10: =MAX(ROUND(0.005+(0.1-D19/10)-0.001/D19,3), 0.001) -> 0.05 | C10: =ROUND(100000*D19,0) -> 53342 | D10: =ROUND(1000*D19+25000+5000/D19,0) -> 34907 | E10: =SUM(C10:D10) -> 88249 | F10: =(C10^2)*B10*(1-B10) -> 135155025.8 | G10: =(D10^2)*B10*(1-B10) -> 57878685.83 | H10: =(E10^2)*B10*(1-B10) -> 369924585
A12: p(i) represents the probability of Event i.
A13: The risk-load multiplier, λ, is | C13: =ROUND(D19/30000,7) -> 1.78e-05 | D13: .
A15: (b) Calculate the risk load for each account using the Shapley method.
A18: TO RE-RANDOMIZE THE VALUES FOR THIS PROBLEM, CLICK ON THE FORMULA IN THE RED BOX AND PRESS "ENTER". That is all you need to do.
D19: =StaticRand() -> 0.5334240198

Sheet Solution
A1: Inexhaustible Exam-Style Practice
A2: Based on Problem 7(b) - Spring 2014 SOA Exam GIADV
A3: Part (b)
A4: We first calculate the variances of X, Y, and (X + Y). These are equal to the respective sums of (L^2)*p*(1-p) across all events.
B6: (L^2)*p*(1-p)
B7: X | C7: Y | D7: X+Y
B8: =Problem!F9 -> 42756757.72 | C8: =Problem!G9 -> 343710929.7 | D8: =Problem!H9 -> 628921517.6
B9: =Problem!F10 -> 135155025.8 | C9: =Problem!G10 -> 57878685.83 | D9: =Problem!H10 -> 369924585
A10: SUM = Variance | B10: =SUM(B8:B9) -> 177911783.5 | C10: =SUM(C8:C9) -> 401589615.5 | D10: =SUM(D8:D9) -> 998846102.7
A12: We know that Var(X+Y) = Var(X) + Var(Y) + 2*Cov(X+Y), implying that Cov(X+Y) = (Var(X+Y)-Var(X)-Var(Y))/2 =
C13: Cov(X+Y) = | D13: =0.5*(D10-B10-C10) -> 209672351.8
A14: The Shapley Method allocates covariance equally among the accounts, meaning that each account gets a contribution of Cov(X+Y) to the risk load.
A15: We recall that the risk-load coefficient λ = | C15: =Problem!C13 -> 1.78e-05
A16: The risk load for X = λ*(Var(X) + Cov(X+Y)) = | C16: =C15*(B10+D13) -> 6898.997609 | D16: ←ANSWER for risk load for X
A17: The risk load for Y = λ*(Var(Y) + Cov(X+Y)) = | C17: =C15*(C10+D13) -> 10880.46302 | D17: ←ANSWER for risk load for Y
